bitfinex/quotes_ETHUSD_20260207
["timestamp","ask_amount","ask_price","bid_price","bid_amount"]
[1770450349774,20.83774399,2031.5,2030.3,0.001]
[1770450349775,1.23071453,2031.4,2030.3,0.001]
[1770450349986,4.92187462,2031.8,2030.3,0.001]
[1770450349987,6.17068051,2031.8,2030.3,0.001]
[1770450350179,4.94024445,2031.6,2030.3,0.001]
[1770450350683,1.23061777,2031.5,2030.3,0.001]
[1770450351060,4.94024445,2031.4,2030.3,0.001]
[1770450351969,4.94024445,2031.2,2030.3,0.001]
[1770450352161,0.49991546,2031.1,2030.3,0.001]
[1770450352669,1.23061777,2031.5,2030.3,0.001]
[1770450352980,20.89665415,2031.4,2030.3,0.001]
[1770450353177,4.94024445,2031.3,2029.7,8.66414622]
[1770450353383,4.94024445,2031.3,2029.8,1.23164843]
[1770450353770,1.23061777,2031.5,2029.9,3.6892549]
[1770450354102,8.8543915,2031.7,2030.0,4.18134523]
[1770450354258,3.91414705,2031.7,2030.3,3.6892549]
[1770450354580,1.23047335,2031.8,2030.3,3.6892549]
[1770450354782,0.002,2031.9,2030.4,1.23128447]
[1770450355285,0.002,2031.9,2030.4,4.89680505]
[1770450355795,0.002,2031.9,2030.9,3.70097364]
[1770450355958,0.002,2031.9,2030.9,3.64206348]
[1770450356153,0.002,2031.9,2031.0,4.06517999]
[1770450356883,0.002,2031.9,2031.1,4.84971241]
[1770450357083,0.002,2031.9,2031.2,3.61885229]
[1770450357599,0.002,2031.9,2031.2,3.67776245]
[1770450358796,0.002,2031.9,2031.3,1.23073893]
[1770450359012,0.002,2031.9,2031.2,1.23077226]
[1770450360072,0.002,2031.7,2031.2,1.23077226]
[1770450360593,0.002,2031.9,2031.2,1.28968242]
[1770450360771,1.23183077,2032.8,2031.6,1.23055719]
[1770450360967,0.002,2032.8,2031.6,1.23055719]
[1770450361163,0.61939848,2032.8,2031.7,0.62116961]
[1770450361369,0.002,2032.8,2031.7,4.14779746]
[1770450361598,0.002,2032.8,2032.1,0.05891016]
[1770450361787,0.002,2033.0,2032.1,15.01294026]
[1770450362108,0.002,2033.3,2032.5,0.05891016]
[1770450362666,0.002,2033.3,2032.8,0.05891016]
[1770450362864,0.002,2033.3,2032.9,1.22977027]
[1770450363098,0.002,2033.3,2033.0,0.62077615]
[1770450363397,9.85834067,2034.2,2033.1,0.05891016]
[1770450363398,0.002,2034.2,2033.1,0.05891016]
[1770450363567,0.002,2034.0,2033.1,0.05891016]
[1770450364898,0.002,2034.0,2033.5,1.22940742]
[1770450365096,0.002,2034.2,2033.7,0.05891016]
[1770450365397,0.002,2034.1,2033.7,0.05891016]
[1770450365895,0.002,2034.1,2033.5,1.22940742]
[1770450365896,0.002,2034.1,2033.4,1.22945383]
[1770450366094,0.002,2034.0,2033.4,1.22945383]
[1770450366300,0.002,2034.2,2033.7,0.05891016]
[1770450366467,0.33316871,2034.7,2033.7,0.05891016]
[1770450366799,0.002,2034.6,2033.8,1.22922607]
[1770450367306,0.002,2034.6,2032.3,3.37636125]
[1770450367307,4.75618137,2034.1,2032.3,3.37636125]
[1770450367605,4.75618137,2033.9,2031.9,3.37636125]
[1770450367776,4.75618137,2033.9,2032.2,4.92075021]
[1770450367973,4.75618137,2033.9,2032.7,1.22988649]
[1770450368170,4.75618137,2033.9,2032.4,1.23004202]
[1770450368478,1.96616596,2034.0,2032.0,4.92109939]
[1770450368479,5.09215167,2033.6,2032.0,1.2303146]
[1770450368800,4.75618137,2033.4,2032.0,1.2303146]
[1770450368984,4.75618137,2033.2,2031.9,4.92133369]
[1770450369301,4.75618137,2033.2,2032.1,0.05891016]
[1770450370500,1.22952835,2033.3,2032.1,0.05891016]
[1770450370676,1.22952835,2033.3,2032.4,0.05891016]
[1770450370880,1.99976299,2033.5,2032.5,1.2300123]
[1770450371081,1.22943957,2033.5,2032.5,1.2300123]
[1770450371286,1.22910521,2034.0,2032.7,0.05891016]
[1770450371488,4.82145146,2033.9,2032.5,1.2300123]
[1770450371691,1.22910521,2034.0,2030.5,0.001]
[1770450371872,4.82145146,2032.6,2030.8,0.05891016]
[1770450372074,6.09284876,2032.3,2031.3,0.05891016]
[1770450372291,1.01711784,2032.2,2031.0,0.05891016]
[1770450372490,7.1099666,2032.2,2031.0,0.05891016]
[1770450372709,7.1099666,2032.2,2030.5,0.001]
[1770450372710,5.05502176,2031.7,2030.5,0.001]
[1770450372910,1.23061777,2031.5,2030.6,0.05891016]
[1770450373077,1.32629131,2031.5,2030.5,0.001]
[1770450373416,1.23057323,2031.6,2030.5,0.001]
[1770450373588,1.2713973,2031.9,2031.0,0.05991016]
[1770450373923,0.48214515,2032.5,2031.1,17.803408]
[1770450374099,2.50122807,2032.8,2031.7,0.05891016]
[1770450374279,1.01810777,2032.7,2031.7,0.05891016]
[1770450374477,1.2713973,2032.9,2031.8,0.05891016]
[1770450374710,2.28948298,2032.9,2031.8,0.05891016]
[1770450375016,5.05502176,2032.7,2031.0,0.05991016]
[1770450375190,1.3737973,2032.5,2031.0,0.05991016]
[1770450375390,1.2713973,2032.2,2031.0,1.23191307]
[1770450375696,1.01808568,2032.1,2031.0,0.001]
[1770450375901,1.2713973,2032.3,2031.0,0.001]
[1770450376204,1.01793223,2032.3,2031.5,1.23061777]
[1770450376378,4.82145146,2032.1,2031.5,1.23061777]
[1770450376585,4.82145146,2032.1,2031.0,4.92461307]
[1770450376586,4.82145146,2032.1,2030.7,0.05891016]
[1770450376587,4.82145146,2032.1,2027.3,0.001]
[1770450376588,4.82145146,2028.6,2027.3,0.001]
[1770450376820,2.46639305,2027.5,2026.2,1.23383673]
[1770450376985,0.2335703,2028.2,2026.4,1.23371496]
[1770450377185,14.90547819,2028.2,2026.4,1.23371496]
[1770450377522,5.89389312,2028.1,2026.4,1.23371496]
[1770450377714,1.69286008,2028.4,2027.4,0.05891016]
[1770450377715,1.26964506,2028.4,2027.4,0.05891016]
[1770450378012,1.01380086,2028.3,2027.4,0.05891016]
[1770450378183,14.90547819,2027.9,2026.6,0.05891016]
[1770450378584,4.88026081,2028.1,2026.9,0.05891016]
[1770450379014,4.88026081,2028.1,2027.0,1.23334977]
[1770450379215,14.90547819,2028.5,2027.2,0.05891016]
[1770450379416,4.82145146,2028.0,2026.4,0.05891016]
[1770450379594,14.90547819,2027.8,2026.8,1.29235771]
[1770450379912,21.14147015,2027.8,2026.8,1.23341347]
[1770450380117,21.14147015,2027.8,2026.9,1.23339687]
[1770450380317,21.14147015,2027.8,2027.3,0.05891016]
[1770450380318,6.0936592,2027.8,2027.3,0.05891016]
[1770450380520,6.0936592,2027.8,2027.0,0.05891016]
[1770450380721,5.59379201,2028.6,2028.1,0.05891016]
[1770450380722,1e-08,2028.6,2028.1,0.05891016]
[1770450380887,0.33644093,2028.8,2028.1,0.05891016]
[1770450380888,6.0936592,2028.8,2028.2,1.23262005]
[1770450381232,19.72692965,2029.6,2028.4,0.05891016]
[1770450381391,19.72692965,2029.6,2028.1,4.98939038]
[1770450381392,4.82145146,2029.4,2028.1,1.23265191]
[1770450381595,6.0936592,2029.5,2028.7,0.05891016]
[1770450382123,4.82145146,2029.4,2028.1,1.23265764]
[1770450382497,6.0936592,2029.3,2028.1,1.23265764]
[1770450383528,6.0936592,2029.3,2028.3,0.05891016]
[1770450383725,6.0936592,2029.3,2028.4,0.05891016]
[1770450383906,6.0936592,2029.3,2028.5,0.05891016]
[1770450384926,14.90547819,2030.0,2028.8,0.05891016]
[1770450385105,7.325311,2029.8,2028.7,1.23228174]
[1770450385421,6.0936592,2029.8,2028.9,0.05891016]
[1770450386094,0.002,2029.1,2028.8,1.29114204]
[1770450386294,6.0936592,2029.8,2028.8,1.23223188]
[1770450386493,6.0936592,2029.8,2028.9,0.05891016]
[1770450386699,0.002,2029.3,2028.9,0.05891016]
[1770450387014,0.002,2029.3,2029.0,1.23213405]
[1770450387220,0.002,2029.3,2028.9,1.91310964]
[1770450388718,0.002,2029.3,2029.2,0.05891016]
[1770450388930,0.001,2029.3,2029.2,0.05891016]
[1770450389236,6.0936592,2030.0,2028.9,1.91310964]
[1770450389421,1.22571697,2030.1,2029.2,0.05891016]
[1770450389422,6.0936592,2030.1,2029.2,0.05891016]
[1770450390422,6.0936592,2030.1,2029.6,0.05891016]
[1770450390639,0.002,2030.2,2029.6,0.05891016]
[1770450390842,0.002,2030.2,2029.7,0.05891016]
[1770450391040,0.002,2030.2,2029.3,1.2319519]
[1770450391341,0.002,2030.2,2029.5,0.05891016]
[1770450391715,19.72692965,2030.1,2029.0,0.68420553]
[1770450392018,4.82145146,2030.1,2029.0,1.23212967]
[1770450392233,4.82145146,2030.1,2029.0,1.23210471]
[1770450392433,4.82145146,2030.1,2029.0,1.15491373]
[1770450392741,4.82145146,2030.1,2028.9,1.23216959]
[1770450392946,4.82145146,2030.1,2028.8,0.05891016]
[1770450393128,1.23152709,2030.0,2028.8,0.05891016]
[1770450393323,1.23344534,2030.2,2029.1,0.05891016]
[1770450393643,1.23344534,2030.2,2028.8,1.29116109]
[1770450393644,1.23341016,2030.2,2028.8,1.29116109]
[1770450393953,19.72692965,2030.1,2028.6,1.23233699]
[1770450394131,4.82145146,2030.0,2028.7,1.23227386]
[1770450394317,6.91748544,2030.0,2028.6,1.23234688]
[1770450394512,4.82145146,2029.9,2028.6,1.23237623]
[1770450394744,4.82145146,2029.9,2028.8,0.05891016]
[1770450395214,4.92612845,2030.0,2028.8,0.05891016]
[1770450395622,1.23152709,2030.0,2028.8,1.29115408]
[1770450395853,1.23152709,2030.0,2028.8,0.05891016]
[1770450396428,1.23152709,2030.0,2028.8,0.68097862]
[1770450396749,1.23152709,2030.0,2028.8,1.91321944]
[1770450397043,0.002,2030.2,2029.4,0.05891016]
[1770450397250,0.002,2030.2,2029.4,1.29074378]
[1770450397450,0.002,2030.2,2029.4,0.05891016]
[1770450397674,0.002,2030.2,2029.4,1.29079903]
[1770450397947,14.90547819,2030.0,2028.8,0.05891016]
[1770450398152,5.0364486,2030.0,2028.9,0.05891016]
[1770450398321,0.002,2030.2,2029.5,0.05891016]
[1770450398738,0.002,2030.2,2029.3,1.23190139]
[1770450399046,0.002,2030.0,2029.2,0.05891016]
[1770450399247,0.002,2030.0,2029.3,1.2319519]
[1770450399418,0.002,2030.0,2029.4,0.62188898]
[1770450399744,0.002,2030.0,2029.2,0.05891016]
[1770450401135,0.002,2030.0,2029.0,1.23213354]
[1770450401330,0.002,2030.0,2029.2,0.05891016]
[1770450402961,5.0384486,2030.0,2028.9,1.2321781]
[1770450403141,0.002,2030.0,2029.1,1.23207333]
[1770450403324,0.002,2030.0,2029.3,0.05891016]
[1770450405157,0.002,2030.0,2029.4,1.23189119]
[1770450405862,0.002,2030.0,2029.6,0.05891016]
[1770450406027,0.33415315,2030.3,2029.6,0.05891016]
[1770450406227,1.25699063,2030.7,2029.9,0.05891016]
[1770450406540,1.02944747,2030.6,2029.9,0.05891016]
[1770450406739,1.25699063,2030.8,2029.9,0.05891016]
[1770450406923,1.02949521,2030.7,2029.9,0.05891016]
[1770450407123,1.02949521,2030.6,2029.9,0.05891016]
[1770450407358,1.25699063,2030.8,2030.0,1.23152709]
[1770450407530,1.02971864,2030.7,2030.1,0.62165456]
[1770450407727,1.02971864,2030.6,2030.1,0.62165456]
[1770450408046,0.002,2030.9,2030.2,0.05891016]
[1770450408245,0.002,2030.9,2030.1,0.62165456]
[1770450408449,14.90547819,2030.4,2029.3,1.23191486]
[1770450408637,1.25699063,2030.2,2029.5,1.23182744]
[1770450408826,1.02896101,2030.1,2029.4,0.05891016]
[1770450409031,1.02896101,2030.0,2029.4,0.05891016]
[1770450409267,2.26056705,2029.9,2029.4,0.05891016]
[1770450409560,4.41468118,2029.8,2028.7,1.23227535]
[1770450409760,1.28708257,2029.2,2028.7,1.23230611]
[1770450410050,1.02896101,2029.1,2028.1,0.05891016]
[1770450410272,1.28708257,2028.9,2028.7,1.23229961]
[1770450410427,1.7161101,2029.1,2028.7,1.23229961]
[1770450410428,0.1264416,2029.1,2028.8,0.05891016]
[1770450410773,2.53929012,2029.6,2029.0,0.001]
[1770450411271,2.53929012,2029.5,2029.0,0.001]
[1770450411426,2.53929012,2029.7,2029.0,0.001]
[1770450411629,2.53929012,2029.6,2029.0,0.001]
[1770450412031,2.53929012,2029.3,2028.8,0.001]
[1770450412230,2.53929012,2029.2,2028.8,0.001]
[1770450412559,2.53929012,2029.3,2028.4,1.23245499]
[1770450412860,2.53929012,2029.3,2028.3,1.2325401]
[1770450413030,2.53929012,2029.2,2028.0,4.93095135]
[1770450413236,2.53929012,2029.1,2028.2,1.23259992]
[1770450413534,1.23211728,2029.1,2028.1,0.05891016]
[1770450413948,2.53929012,2029.2,2028.1,0.05891016]
[1770450414128,2.53929012,2029.2,2028.4,0.05891016]
[1770450414330,2.53929012,2029.3,2028.4,0.05891016]
[1770450414729,2.53929012,2029.2,2028.1,0.05891016]
[1770450415326,1.23207333,2029.1,2028.2,1.23262005]
[1770450415536,5.0364486,2028.9,2027.9,0.001]
[1770450415741,2.53929012,2028.3,2027.9,0.001]
[1770450416261,5.0364486,2028.1,2027.5,0.001]
[1770450416480,2.53929012,2028.2,2026.4,1.23467231]
[1770450416481,5.0364486,2027.3,2026.4,1.23467231]
[1770450416632,2.58124154,2027.2,2026.6,0.001]
[1770450416833,2.58124154,2027.3,2026.7,0.05891016]
[1770450417034,2.58124154,2027.6,2026.8,0.001]
[1770450417266,5.0364486,2027.8,2026.8,0.001]
[1770450417665,7.61769014,2027.7,2026.9,0.001]
[1770450417884,2.58124154,2027.9,2026.6,0.05891016]
[1770450418084,8.47810399,2028.2,2027.0,0.05891016]
[1770450418085,6.26908471,2028.2,2027.0,0.05891016]
[1770450418374,6.26907018,2028.2,2026.7,0.001]
[1770450418543,5.0364486,2028.2,2027.0,0.05891016]
[1770450418951,5.0364486,2028.2,2027.1,0.001]
[1770450419151,8.85010785,2028.6,2027.3,0.05891016]
[1770450419451,2.58124154,2028.7,2027.8,0.05891016]
[1770450419679,8.84981067,2029.1,2027.8,0.05891016]
[1770450419880,5.0364486,2029.1,2028.1,0.05891016]
[1770450420082,6.26853316,2029.1,2027.9,0.001]
[1770450420268,6.26821843,2029.6,2028.0,0.05891016]
[1770450420472,5.0364486,2029.4,2028.0,0.05891016]
[1770450420668,5.0364486,2029.4,2028.1,0.001]
[1770450420985,5.0364486,2029.4,2028.1,0.05991016]
[1770450420986,2.58124154,2029.4,2028.1,0.05991016]
[1770450421182,5.0364486,2029.4,2028.1,0.05991016]
[1770450421352,5.0364486,2029.4,2027.4,0.05891016]
[1770450421353,5.0364486,2028.7,2027.4,0.05891016]
[1770450421555,6.2688256,2028.6,2027.4,1.2330856]
[1770450421754,8.85006714,2028.6,2027.4,1.23307715]
[1770450421951,5.0364486,2028.4,2027.1,1.23324892]
[1770450422156,5.0364486,2028.3,2027.0,1.23334842]
[1770450422499,3.60745236,2028.2,2027.2,1.23317753]
[1770450422786,1.02621082,2028.1,2026.9,0.05891016]
[1770450422972,1.02621082,2028.0,2026.7,1.23349679]
[1770450423173,1.02621082,2028.0,2026.8,0.05891016]
[1770450423174,1.02621082,2027.9,2026.8,0.05891016]
[1770450423378,1.02621082,2027.9,2027.1,1.23323555]
[1770450423555,1.02621082,2027.8,2027.6,0.001]
[1770450423757,1.23263194,2028.2,2027.6,0.001]
[1770450423963,1.02551286,2028.1,2027.6,0.001]
[1770450424258,0.002,2028.7,2027.7,0.05891016]
[1770450424577,1.02434502,2028.6,2027.6,0.001]
[1770450424781,1.02434502,2028.5,2027.6,0.001]
[1770450425083,0.002,2028.7,2027.7,0.05891016]
[1770450425497,1.02294532,2028.6,2027.8,1.2328632]
[1770450425799,0.002,2028.7,2027.8,1.2328632]
[1770450426005,0.002,2028.9,2028.3,0.05891016]
[1770450426168,0.002,2029.8,2028.6,0.05891016]
[1770450426537,0.002,2029.8,2028.9,0.05891016]
[1770450426794,1.02286244,2029.7,2028.6,0.05891016]
[1770450427010,1.02286244,2029.6,2028.7,0.05891016]
[1770450427298,0.002,2029.8,2028.7,0.05891016]
[1770450427497,0.002,2029.8,2029.1,1.23207333]
[1770450427803,0.002,2029.8,2029.2,0.62192768]
[1770450428173,0.002,2029.8,2029.0,1.23209999]
[1770450428395,0.002,2029.8,2029.0,1.29101015]
[1770450428998,0.002,2029.8,2028.8,4.92897638]
[1770450428999,1.02485238,2029.7,2028.7,1.23231528]
[1770450429211,1.02485238,2029.6,2028.4,1.23244814]
[1770450429407,1.02485238,2029.5,2028.4,1.23244814]
[1770450429614,1.02485238,2029.4,2028.4,1.23244814]
[1770450429784,0.002,2029.8,2028.4,1.23244814]
[1770450429785,0.002,2029.8,2028.5,0.6221595]
[1770450429979,1.2336533,2029.8,2028.6,0.05891016]
[1770450430205,1.02611918,2029.7,2028.6,0.05891016]
[1770450430506,1.02611918,2029.6,2028.5,0.6221595]
[1770450430712,1.02611918,2029.5,2028.5,0.6221595]
[1770450430894,1.23367281,2029.8,2028.5,0.6221595]
[1770450431097,1.02535494,2029.7,2028.5,0.6221595]
[1770450431317,1.02535494,2029.7,2028.4,1.23244814]
[1770450431318,5.00824279,2029.4,2027.8,0.05891016]
[1770450431534,1.23207333,2029.1,2027.6,0.001]
[1770450431710,1.02535494,2029.0,2027.6,0.001]
[1770450431912,1.02514312,2028.9,2027.6,0.001]
[1770450432089,1.02514312,2028.8,2027.6,0.001]
[1770450432289,1.02514312,2028.7,2027.6,0.001]
[1770450432486,1.02514312,2028.6,2027.6,0.62362056]
[1770450432694,1.02514312,2028.5,2027.6,0.001]
[1770450432996,1.02514312,2028.4,2027.6,0.001]
[1770450433197,1.02514312,2028.3,2027.6,0.001]
[1770450433520,1.23268083,2028.1,2027.4,0.001]
[1770450433819,1.23268083,2028.1,2026.4,0.001]
[1770450433820,4.67227249,2027.9,2026.4,0.001]
[1770450433993,1.02514312,2027.8,2026.6,1.23358551]
[1770450434192,1.02514312,2027.7,2026.6,1.23358551]
[1770450434393,1.02514312,2027.6,2026.6,1.23358551]
[1770450434608,4.67227249,2027.9,2026.6,1.23358551]
[1770450434786,1.56383289,2027.8,2026.6,1.23358551]
[1770450434992,1.02472017,2027.7,2026.6,1.23358551]
[1770450435222,1.02472017,2027.6,2026.6,1.23358551]
[1770450435425,0.53911272,2027.8,2026.6,1.23358551]
[1770450435747,1.02401035,2027.7,2026.9,0.05891016]
[1770450436019,3.44165539,2028.5,2026.9,0.05891016]
[1770450436020,1.23241313,2028.6,2027.2,0.05891016]
[1770450436330,1.02445183,2028.5,2027.5,0.05891016]
[1770450436492,1.02445183,2028.4,2027.8,0.001]
[1770450436693,0.75107342,2028.6,2027.8,0.001]
[1770450436898,1.02436651,2028.5,2027.8,0.001]
[1770450437115,0.75107342,2028.6,2027.8,0.001]
[1770450437116,1.02584298,2028.4,2027.8,0.001]
[1770450437418,5.69811547,2028.3,2027.5,0.001]
[1770450437715,1.23268083,2028.1,2027.5,0.001]
[1770450437915,1.23268083,2028.1,2026.7,1.23453234]
[1770450437916,8.27935701,2028.0,2026.7,0.001]
[1770450438119,1.02584298,2027.9,2026.7,0.001]
[1770450438419,1.02584298,2027.8,2026.7,0.001]
[1770450438719,1.02584298,2027.7,2026.7,0.001]
[1770450439017,5.69811547,2027.6,2026.7,0.001]
[1770450439218,1.02584298,2027.5,2026.7,0.001]
[1770450439396,1.25941328,2027.4,2026.7,0.001]
[1770450439598,7.25832062,2028.2,2026.7,0.001]
[1770450439599,4.28230915,2029.2,2027.6,0.05891016]
[1770450439814,4.73118265,2029.4,2027.4,1.89397496]
[1770450439993,1.23433992,2028.7,2027.5,0.68853109]
[1770450440507,1.23433992,2028.7,2027.1,4.93313575]
[1770450440508,0.05891016,2028.6,2027.3,1.23315004]
[1770450440842,4.73118265,2028.6,2027.2,1.23321807]
[1770450441123,4.73118265,2028.6,2027.3,1.23315354]
[1770450441514,4.67227249,2028.6,2027.3,1.23315354]
[1770450441826,5.90465156,2028.6,2026.7,9.3489925]
[1770450441990,4.67227249,2028.5,2026.8,0.93489925]
[1770450442192,1.23237907,2028.6,2026.7,0.001]
[1770450442193,0.05891016,2028.4,2026.7,0.001]
[1770450442604,4.73118265,2028.4,2026.7,0.001]
[1770450443001,4.67227249,2028.4,2026.7,0.001]
[1770450443521,0.05891016,2028.3,2026.7,0.001]
[1770450443726,1.23262005,2028.2,2026.7,0.001]
[1770450443895,0.62220104,2028.1,2026.7,0.62823661]
[1770450444303,1.232377,2028.6,2026.7,0.62823661]
[1770450444528,1.33675789,2028.7,2026.8,0.05891016]
[1770450444726,1.23435789,2028.7,2026.8,0.05891016]
[1770450444899,1.23433559,2028.7,2026.8,0.16131016]
[1770450445296,4.67227249,2028.6,2026.8,0.05891016]
[1770450445600,0.05891016,2028.4,2026.7,0.62823661]
[1770450445804,1.23249852,2028.4,2026.8,1.23347148]
[1770450446025,0.002,2028.7,2026.9,4.51643924]
[1770450446237,4.73118265,2028.6,2026.8,1.23347148]
[1770450446398,4.73118265,2028.0,2026.7,1.86173301]
[1770450446595,5.37896106,2027.9,2026.8,0.67960688]
[1770450446806,5.14539076,2027.9,2026.7,1.2344964]
[1770450447027,5.14539076,2027.9,2026.7,0.001]
[1770450447225,4.67227249,2027.9,2026.8,1.23347148]
[1770450447431,4.67227249,2027.7,2026.7,0.001]
[1770450447641,0.2335703,2027.6,2026.7,0.001]
[1770450447873,1.23304562,2027.5,2026.7,0.001]
[1770450448632,6.47814802,2027.6,2026.7,0.001]
[1770450448849,6.41923786,2027.6,2026.7,0.001]
[1770450449215,5.90529655,2027.6,2026.7,0.001]
[1770450449895,0.05891016,2027.5,2026.9,0.001]
[1770450450371,0.1024,2026.9,2025.8,0.001]
[1770450450627,0.2335703,2026.8,2025.8,0.001]
[1770450450829,4.67227249,2026.7,2025.8,0.001]
[1770450451027,0.05891016,2026.4,2024.6,4.93914205]
[1770450451330,4.67227249,2026.4,2025.2,1.23441905]
[1770450451662,6.67864937,2026.8,2025.1,4.93797532]
[1770450451796,0.2335703,2026.7,2025.4,1.23428038]
[1770450452001,0.2335703,2026.5,2024.7,9.45534064]
[1770450452202,4.90584279,2026.5,2024.7,9.35294064]
[1770450452504,4.90584279,2026.5,2024.6,1.29366098]
[1770450452505,14.99661584,2025.7,2024.5,1.23485283]
[1770450452710,4.67227249,2026.0,2024.6,1.23480253]
[1770450453329,0.05891016,2026.3,2024.3,0.1246655]
[1770450453330,14.99661584,2025.9,2024.3,0.1246655]
[1770450453636,0.2335703,2025.1,2024.3,0.1246655]
[1770450453813,4.90584279,2025.0,2023.0,4.94308119]
[1770450454012,0.1024,2025.5,2023.7,0.05891016]
[1770450454013,0.2335703,2025.4,2023.7,0.05891016]
[1770450454224,0.2335703,2025.4,2024.0,0.05891016]
[1770450454225,0.62425669,2025.4,2024.0,0.05891016]
[1770450454425,0.62425669,2025.4,2023.7,0.05891016]
[1770450454426,0.2335703,2025.4,2023.8,0.05891016]
[1770450454943,4.90584279,2025.2,2023.0,9.35712043]
[1770450455124,0.2335703,2024.9,2023.0,9.35712043]
[1770450455327,4.67227249,2025.0,2023.0,9.35712043]
[1770450455536,4.67227249,2025.0,2023.3,0.05891016]
[1770450455721,5.13949974,2025.0,2023.3,0.05891016]
[1770450455921,4.67227249,2025.0,2023.3,0.05891016]
[1770450456120,5.9068554,2025.0,2023.4,1.23554413]
[1770450456751,0.2335703,2024.9,2023.4,1.23554413]
[1770450457445,5.96576556,2025.0,2023.4,1.23554413]
[1770450457446,5.9068554,2025.0,2023.4,1.23554413]
[1770450458143,5.96576556,2025.0,2023.3,4.94217653]
[1770450458348,5.9068554,2025.0,2023.4,0.98843531]
[1770450458513,4.67512453,2025.8,2023.6,4.35128762]
[1770450458712,4.57272453,2025.8,2023.9,4.32849025]
[1770450458919,1.23399283,2026.0,2024.2,0.05891016]
[1770450459222,4.57272453,2026.3,2024.2,0.05891016]
[1770450459223,1.23383673,2026.2,2024.3,0.1024]
[1770450459428,4.57272453,2026.1,2024.3,0.54548903]
[1770450459728,4.63163469,2025.9,2024.3,0.44308903]
[1770450459929,4.57272453,2025.9,2024.0,0.1024]
[1770450460150,1.23414128,2025.7,2023.6,4.32704923]
[1770450460314,0.2335703,2025.6,2023.6,4.38595939]
[1770450461148,4.57272453,2026.4,2024.6,4.23912743]
[1770450461346,1.23372175,2026.4,2024.7,0.42391274]
[1770450461656,1.23353234,2026.7,2024.7,0.42391274]
[1770450461816,5.80621213,2026.8,2024.9,0.05891016]
[1770450462445,0.002,2026.0,2025.0,1.2345679]
[1770450463972,0.002,2026.0,2025.2,0.05891016]
[1770450464355,0.002,2026.0,2025.3,1.23438502]
[1770450464666,0.002,2026.0,2025.4,0.62308353]
[1770450464862,0.002,2026.0,2025.2,1.23443826]
[1770450466070,0.002,2026.0,2025.1,1.2344702]
[1770450466566,0.002,2026.0,2024.8,1.23468984]
[1770450467948,0.2355703,2026.0,2024.8,1.23468984]
[1770450468153,4.57272453,2025.8,2024.7,1.23474885]
[1770450468479,1.23401944,2025.9,2024.8,0.6173806]
[1770450468673,1.23401944,2025.9,2024.7,1.23470851]
[1770450468841,5.80674397,2025.9,2024.8,1.2346893]
[1770450469270,5.80674397,2025.9,2024.7,1.23471677]
[1770450469653,5.80674397,2025.9,2024.7,1.23471795]
[1770450470055,4.80629483,2025.7,2024.6,1.23476933]
[1770450470252,4.80629483,2025.7,2024.2,4.94006047]
[1770450470253,0.49086948,2025.6,2024.2,4.94006047]
[1770450470455,1.23420221,2025.6,2024.2,4.94006047]
[1770450470654,5.80690473,2025.7,2024.2,4.94006047]
[1770450470974,1.23406505,2025.9,2024.4,0.05891016]
[1770450471177,4.80629483,2025.8,2024.4,0.04109083]
[1770450471470,4.80629483,2025.8,2024.2,0.04109083]
[1770450471773,5.18265153,2025.7,2024.2,0.66277862]
[1770450471949,0.609927,2025.7,2024.2,0.66277862]
[1770450472273,0.002,2026.0,2024.5,8.89117503]
[1770450472465,0.002,2026.0,2024.6,0.04108271]
[1770450472660,0.002,2026.0,2024.7,1.23475082]
[1770450472868,0.002,2026.0,2024.8,0.04107865]
[1770450473450,0.002,2026.0,2024.8,3.72308714]
[1770450473649,0.002,2026.0,2024.9,0.4957838]
[1770450473971,0.002,2026.0,2025.0,0.04107459]
[1770450474553,0.002,2026.0,2024.9,1.73036723]
[1770450474765,0.002,2026.0,2025.0,1.23456348]
[1770450475783,0.002,2025.8,2025.0,1.23456348]
[1770450476080,0.002,2026.0,2025.0,1.23456348]
[1770450476081,0.002,2026.0,2025.2,3.66735847]
[1770450476378,4.57272453,2027.4,2025.5,3.56495847]
[1770450476581,5.80595262,2027.2,2025.6,1.23420221]
[1770450476784,4.57272453,2027.1,2025.6,1.23420221]
[1770450476993,4.63163469,2027.0,2025.6,1.23420221]
[1770450477149,10.4394583,2026.9,2025.6,1.23420221]
[1770450477497,10.4394583,2026.9,2025.2,4.93773123]
[1770450477498,4.86520499,2026.7,2025.2,4.93763984]
[1770450477679,4.86520499,2026.7,2025.3,1.23435061]
[1770450477976,4.57272453,2026.6,2025.3,1.23435061]
[1770450478686,5.80637861,2026.5,2024.9,4.93836236]
[1770450478854,1.07409949,2026.4,2025.0,0.61730522]
[1770450479286,4.57272453,2026.8,2025.0,0.67621538]
[1770450479856,4.57272453,2026.8,2025.0,0.61730522]
[1770450480186,1.69661315,2026.9,2025.0,0.61730522]
[1770450480187,0.46316347,2026.9,2025.3,0.1024]
[1770450480366,1.23338843,2027.0,2025.3,0.1024]
[1770450480702,4.57272453,2027.2,2025.5,0.05891016]
[1770450480985,5.80596376,2027.2,2025.5,3.44019883]
[1770450481174,4.57272453,2027.1,2025.4,1.23432408]
[1770450481575,6.08293959,2027.7,2025.9,3.44805725]
[1770450481759,5.80565702,2027.7,2026.1,0.05891016]
[1770450481954,4.57272453,2027.7,2026.4,0.05891016]
[1770450482171,5.8057049,2027.7,2026.1,0.05891016]
[1770450482464,5.8057049,2027.7,2026.0,1.85502078]
[1770450482671,4.9316876,2027.8,2026.0,1.85502078]
[1770450482672,5.80577015,2027.5,2026.1,1.23389763]
[1770450482885,1.07379045,2027.4,2026.2,0.8024509]
[1770450483062,5.64651498,2027.4,2026.0,1.23391725]
[1770450483786,4.63163469,2027.2,2026.0,1.2339456]
[1770450483979,4.57272453,2027.2,2026.0,1.2339456]
[1770450484178,4.57272453,2027.2,2026.0,1.23394389]
[1770450484486,4.57272453,2027.2,2025.3,0.1024]
[1770450484688,1.23334977,2027.0,2025.5,4.93684796]
[1770450485190,4.57272453,2027.0,2025.5,4.93684796]
[1770450485398,4.57272453,2027.8,2026.0,3.24097361]
[1770450485567,4.57272453,2027.8,2025.7,0.1024]
[1770450485568,4.57272453,2027.7,2025.7,0.1024]
[1770450485898,4.57272453,2027.7,2025.9,0.1024]
[1770450485899,5.02999698,2027.7,2025.9,0.1024]
[1770450486997,5.18523692,2027.6,2025.9,1.23401944]
[1770450487297,3.95225212,2027.5,2025.9,1.23401944]
[1770450487790,1.2329848,2027.6,2025.9,19.36513441]
[1770450487965,0.66221965,2027.5,2026.0,2.43601224]